bitfinex-derivatives/quotes_ETHF0:USTF0_20250331
["timestamp","ask_amount","ask_price","bid_price","bid_amount"]
[1743419575041,6.4043857,1802.2,1802.1,1.1099]
[1743419577041,6.4043857,1802.2,1802.1,1.7987]
[1743419577247,6.4043857,1802.2,1802.1,3.3116]
[1743419577763,9.6121857,1802.2,1802.1,1.5129]
[1743419578550,5.2945257,1802.2,1802.1,2.6228]
[1743419578958,6.4043657,1802.2,1802.1,2.6228]
[1743419579663,6.4043657,1802.2,1802.1,1.5129]
[1743419580157,6.4043657,1802.2,1802.1,2.6228]
[1743419581349,5.2945257,1802.2,1802.1,2.6228]
[1743419581665,0.0083257,1802.2,1802.1,2.6228]
[1743419581863,0.0083257,1802.2,1802.1,5.8306]
[1743419582050,5.7e-06,1802.2,1802.1,5.8306]
[1743419582359,5.7e-06,1802.2,1802.1,8.3306]
[1743419582656,5.7e-06,1802.2,1802.1,5.8306]
[1743419586551,5.7e-06,1802.2,1802.1,8.3306]
[1743419586761,5.7e-06,1802.2,1802.1,5.8306]
[1743419589560,5.7e-06,1802.2,1802.1,8.3306]
[1743419589761,5.7e-06,1802.2,1802.1,5.8306]
[1743419594960,1.1098457,1802.2,1802.1,5.8306]
[1743419595169,5.7e-06,1802.2,1802.1,2.6228]
[1743419595759,1.1098457,1802.2,1802.1,2.6228]
[1743419595968,3.3174457,1802.2,1802.1,2.6228]
[1743419596265,2.2076057,1802.2,1802.1,2.6228]
[1743419596659,3.3174457,1802.2,1802.1,2.6228]
[1743419597569,2.2076057,1802.2,1802.1,2.6228]
[1743419598569,3.3174457,1802.2,1802.1,2.6228]
[1743419598761,4.0489457,1802.2,1802.1,2.6228]
[1743419598957,8.2138557,1802.2,1801.9,3.2078]
[1743419599160,1.11002,1802.0,1801.9,1.10999]
[1743419599562,1.3809,1802.0,1801.9,1.10999]
[1743419599867,1.3809,1802.0,1801.9,1.85409]
[1743419600062,2.49086,1802.0,1801.9,2.62169]
[1743419602065,1.3809,1802.0,1801.9,2.62169]
[1743419602567,1.4365057,1802.2,1802.1,1.1099]
[1743419602767,2.5463457,1802.2,1802.1,1.1099]
[1743419603772,3.9807457,1802.2,1802.1,1.1099]
[1743419604469,2.1394057,1802.2,1802.1,1.1099]
[1743419604769,3.2492457,1802.2,1802.1,1.8505]
[1743419604970,3.2492457,1802.2,1802.1,1.1099]
[1743419605269,3.9546457,1802.2,1802.1,1.1099]
[1743419605473,1.1099,1802.1,1802.0,2.60981]
[1743419605770,2.5232,1802.1,1802.0,2.60981]
[1743419606165,1.4133,1802.1,1802.0,2.60981]
[1743419606673,2.5232,1802.1,1802.0,2.60981]
[1743419607370,2.5232,1802.1,1802.0,1.10991]
[1743419607567,1.10996,1802.0,1801.9,2.61107]
[1743419607760,2.51736,1802.0,1801.9,2.61107]
[1743419611472,1.4074,1802.0,1801.9,2.61107]
[1743419611771,2.51736,1802.0,1801.9,2.61107]
[1743419613673,1.4074,1802.0,1801.9,2.61107]
[1743419614567,2.51736,1802.0,1801.9,2.61107]
[1743419616876,1.4074,1802.0,1801.9,2.61107]
[1743419622176,2.51736,1802.0,1801.9,2.61107]
[1743419622576,1.11002,1801.9,1801.8,1.11006]
[1743419622775,1.1102,1801.7,1801.6,1.11013]
[1743419622977,1.1102,1801.7,1801.6,2.56523]
[1743419623683,1.11021,1801.6,1801.5,1.11021]
[1743419623879,1.81041,1801.6,1801.5,1.11021]
[1743419624387,3.18791,1801.6,1801.5,1.11021]
[1743419624883,1.11027,1801.5,1801.4,2.56539]
[1743419625078,2.48777,1801.5,1801.4,2.56539]
[1743419627282,1.3775,1801.5,1801.4,2.56539]
[1743419627479,1.4202,1801.6,1801.5,1.11027]
[1743419627680,2.54458,1801.8,1801.7,1.11015]
[1743419627886,0.7327,1801.8,1801.7,1.11015]
[1743419628588,3.2078,1801.9,1801.8,1.11008]
[1743419629283,5.72048,1801.9,1801.7,2.52239]
[1743419629482,5.72048,1801.9,1801.8,1.11008]
[1743419629683,5.72048,1801.9,1801.8,2.52238]
[1743419630082,5.72048,1801.9,1801.8,1.4123]
[1743419630482,5.72048,1801.9,1801.6,1.84196]
[1743419630483,1.11015,1801.7,1801.6,1.84196]
[1743419630689,2.51272,1801.8,1801.7,1.11015]
[1743419630885,2.51272,1801.8,1801.7,2.52245]
[1743419633687,2.51272,1801.8,1801.7,1.4123]
[1743419634186,2.51272,1801.8,1801.7,2.52245]
[1743419635987,4.31787,1801.9,1801.8,1.11008]
[1743419636288,3.9093,1802.1,1802.0,1.10996]
[1743419636493,0.7015,1802.1,1802.0,1.10996]
[1743419637188,0.7015,1802.1,1802.0,1.80636]
[1743419638194,1.8114,1802.1,1802.0,1.80636]
[1743419638490,3.311,1802.1,1802.0,1.80636]
[1743419638689,2.2011,1802.1,1802.0,1.80636]
[1743419638992,3.311,1802.1,1802.0,1.80636]
[1743419639394,3.311,1802.1,1802.0,1.10996]
[1743419643891,3.311,1802.1,1801.7,3.2078]
[1743419643892,1.11014,1801.8,1801.7,1.11009]
[1743419644089,1.11014,1801.8,1801.5,0.7373]
[1743419644090,1.11021,1801.6,1801.5,0.7373]
[1743419644296,1.11037,1801.4,1801.3,1.11035]
[1743419644484,1.11037,1801.4,1801.3,2.56875]
[1743419645096,2.60792,1801.5,1801.4,1.11033]
[1743419645302,1.4976,1801.5,1801.4,2.56873]
[1743419645507,2.60787,1801.5,1801.4,2.56873]
[1743419646209,2.60787,1801.5,1801.4,1.4584]
[1743419646601,1.11039,1801.3,1801.2,4.31821]
[1743419647209,1.82999,1801.3,1801.2,1.11041]
[1743419647608,1.82999,1801.3,1801.2,2.61381]
[1743419647816,3.33869,1801.3,1801.2,2.61381]
[1743419648515,2.2283,1801.3,1801.2,2.61381]
[1743419649307,3.33869,1801.3,1801.2,2.61381]
[1743419650720,4.31817,1801.4,1801.3,1.11039]
[1743419651018,1.11028,1801.5,1801.4,1.11033]
[1743419651222,1.11025,1801.6,1801.5,1.11022]
[1743419651409,5.75113,1801.8,1801.7,1.11015]
[1743419651720,1.11013,1801.8,1801.7,1.11015]
[1743419651919,1.11019,1801.7,1801.6,1.11016]
[1743419652113,1.11019,1801.7,1801.6,2.58896]
[1743419652313,1.11015,1801.7,1801.6,2.58896]
[1743419652519,2.59563,1801.8,1801.7,1.11015]
[1743419652720,2.59563,1801.8,1801.7,2.58895]
[1743419653418,2.59563,1801.8,1801.7,1.4788]
[1743419654624,2.59563,1801.8,1801.7,2.58895]
[1743419655016,1.4855,1801.8,1801.7,2.58895]
[1743419655218,2.59558,1801.8,1801.7,2.58895]
[1743419657120,1.4855,1801.8,1801.7,2.58895]
[1743419657319,7.1038,1801.9,1801.8,1.11008]
[1743419657520,8.5819,1801.9,1801.8,2.61488]
[1743419657825,9.69192,1801.9,1801.8,2.61488]
[1743419659132,6.48412,1801.9,1801.8,2.61488]
[1743419659534,9.69192,1801.9,1801.8,1.5048]
[1743419659827,6.48412,1801.9,1801.8,2.61488]
[1743419661432,9.69192,1801.9,1801.8,1.5048]
[1743419661734,9.69192,1801.9,1801.8,2.61488]
[1743419661923,6.48412,1801.9,1801.8,2.61488]
[1743419663024,5.3741,1801.9,1801.8,2.61488]
[1743419663325,6.48412,1801.9,1801.8,2.61488]
[1743419666233,3.896,1801.9,1801.8,2.61488]
[1743419666434,5.00602,1801.9,1801.8,2.61488]
[1743419667042,1.11002,1801.9,1801.8,2.61488]
[1743419667525,7.14442,1802.0,1801.9,1.11002]
[1743419667836,3.25042,1802.0,1801.9,3.28962]
[1743419670238,3.2078,1802.1,1802.0,1.10996]
[1743419670430,8.4925,1802.1,1802.0,2.58296]
[1743419670632,9.60244,1802.1,1802.0,2.58296]
[1743419671440,6.39464,1802.1,1802.0,2.58296]
[1743419675240,6.39464,1802.1,1802.0,1.473]
[1743419675636,6.39464,1802.1,1802.0,2.58296]
[1743419677238,1.10996,1802.0,1801.9,1.10998]
[1743419677438,3.93236,1802.0,1801.9,1.10998]
[1743419678336,3.93236,1802.0,1801.9,1.85608]
[1743419679048,3.22076,1802.0,1801.9,1.85608]
[1743419679238,2.1108,1802.0,1801.9,1.85608]
[1743419679947,3.22076,1802.0,1801.9,1.85608]
[1743419682347,3.22076,1802.0,1801.9,3.35358]
[1743419682949,5.00296,1802.1,1802.0,1.10996]
[1743419683543,8.1539157,1802.2,1802.1,1.1099]
[1743419683544,3.2813657,1802.2,1802.1,1.1099]
[1743419683745,5.7e-06,1802.2,1802.1,1.1099]
[1743419684044,5.7e-06,1802.2,1802.1,2.5949]
[1743419684250,1.1098457,1802.2,1802.1,2.5949]
[1743419684550,5.7e-06,1802.2,1802.1,2.5949]
[1743419685650,5.7e-06,1802.2,1802.1,5.8027]
[1743419687245,5.7e-06,1802.2,1802.1,8.3027]
[1743419692452,4.669,1802.9,1802.1,8.3027]
[1743419692453,3.9268,1802.9,1802.1,16.9288]
[1743419692647,5.4325,1802.9,1802.8,1.10947]
[1743419693453,5.4325,1802.9,1802.8,2.58227]
[1743419694170,2.2247,1802.9,1802.8,2.58227]
[1743419694865,3.33411,1802.9,1802.8,2.58227]
[1743419695170,2.2247,1802.9,1802.8,2.58227]
[1743419695369,3.33411,1802.9,1802.8,2.58227]
[1743419695671,2.2247,1802.9,1802.8,2.58227]
[1743419696266,3.33411,1802.9,1802.8,1.10947]
[1743419696464,3.33411,1802.9,1802.7,1.1178157]
[1743419696465,1.10947,1802.8,1802.7,1.1178157]
[1743419696673,2.62297,1802.8,1802.7,1.1178157]
[1743419697766,1.5135,1802.8,1802.7,1.1178157]
[1743419698164,2.62297,1802.8,1802.7,1.1178157]
[1743419699672,2.7739,1802.7,1802.4,1.10965]
[1743419699872,1.1097,1802.5,1802.4,1.10965]
[1743419700177,1.10979,1802.4,1802.3,1.10975]
[1743419700365,1.86839,1802.4,1802.3,1.10975]
[1743419701970,1.11002,1801.9,1801.8,3.2078]
[1743419702170,1.11002,1801.9,1801.8,1.11004]
[1743419702171,1.11005,1801.9,1801.8,1.11004]
[1743419702475,3.2078,1802.0,1801.9,1.11002]
[1743419703577,4.6344,1802.0,1801.9,1.11002]
[1743419704776,5.74436,1802.0,1801.9,1.11002]
[1743419705682,4.6344,1802.0,1801.9,1.11002]
[1743419706271,1.4266,1802.0,1801.9,1.11002]
[1743419706681,0.0083257,1802.1,1802.0,1.10996]
[1743419707374,1.10996,1802.0,1801.9,2.54149]
[1743419707576,1.3924,1802.0,1801.9,2.54149]
[1743419707980,0.0083257,1802.1,1802.0,1.10996]
[1743419708173,0.0083257,1802.1,1802.0,2.59866]
[1743419708581,1.4642257,1802.1,1802.0,2.59866]
[1743419708972,1.4642257,1802.1,1802.0,1.10996]
[1743419709172,2.5741257,1802.1,1802.0,1.10996]
[1743419710075,1.4642257,1802.1,1802.0,1.10996]
[1743419710279,2.5741257,1802.1,1802.0,1.10996]
[1743419710479,1.4642257,1802.1,1802.0,1.10996]
[1743419711682,0.0083257,1802.1,1802.0,1.10996]
[1743419711877,0.0083257,1802.1,1802.0,1.79976]
[1743419712578,0.0083257,1802.1,1802.0,5.00756]
[1743419715478,0.0083257,1802.1,1802.0,4.31776]
[1743419715780,1.1182257,1802.1,1802.0,1.10996]
[1743419715973,2.5282857,1802.1,1802.0,1.10996]
[1743419716284,1.4183257,1802.1,1802.0,1.10996]
[1743419719179,2.5282257,1802.1,1802.0,1.10996]
[1743419719382,2.5282257,1802.1,1801.9,1.10998]
[1743419719383,1.10996,1802.0,1801.9,1.10998]
[1743419719682,1.11002,1801.9,1801.8,0.0083257]
[1743419719891,1.11015,1801.7,1801.6,4.31797]
[1743419720075,1.11015,1801.7,1801.6,1.11017]
[1743419720583,3.29895,1801.7,1801.6,1.11017]
[1743419721990,3.29895,1801.7,1801.6,1.11021]
[1743419722391,1.11021,1801.6,1801.5,2.5682457]
[1743419722582,2.59351,1801.6,1801.5,2.5682457]
[1743419722983,3.30791,1801.6,1801.5,2.5682457]
[1743419723185,3.30791,1801.6,1801.5,1.1185457]
[1743419723385,3.30791,1801.6,1801.5,0.0083257]
[1743419723884,3.30791,1801.6,1801.5,1.1185957]
[1743419724192,3.30791,1801.6,1801.5,0.0083257]
[1743419724386,3.30791,1801.6,1801.5,1.1185957]
[1743419724692,3.30791,1801.6,1801.5,0.0083257]
[1743419725790,3.30791,1801.6,1801.5,1.1185957]
[1743419726892,4.99511,1801.8,1801.7,1.11008]
[1743419727096,7.11901,1801.8,1801.7,1.11008]
[1743419728096,7.11901,1801.8,1801.7,2.58308]
[1743419728298,7.11901,1801.8,1801.7,1.473]
[1743419728702,7.11901,1801.8,1801.7,2.58315]
[1743419729393,7.11901,1801.8,1801.7,1.473]
[1743419729594,7.11901,1801.8,1801.7,2.58315]
[1743419730400,7.11901,1801.8,1801.7,1.473]
[1743419731198,6.0089,1801.8,1801.5,1.1185757]
[1743419731398,1.11021,1801.6,1801.5,1.1185757]
[1743419732302,1.11021,1801.6,1801.5,0.0083257]
[1743419732496,1.82861,1801.6,1801.5,0.0083257]
[1743419732894,2.6091,1801.7,1801.6,1.11021]
[1743419733601,2.6091,1801.7,1801.6,2.56051]
[1743419734195,2.6091,1801.7,1801.6,1.4503]
[1743419734400,1.11021,1801.6,1801.5,0.0083257]
[1743419734600,3.29251,1801.6,1801.5,1.1185957]
[1743419734997,3.29251,1801.6,1801.5,0.0083257]
[1743419735320,2.77571,1801.5,1800.9,5.9844]
[1743419735499,1.11051,1801.2,1801.1,1.11049]
[1743419735896,14.14755,1801.4,1801.0,2.57563]
[1743419735897,1.11052,1801.1,1801.0,2.57563]
[1743419736096,2.61442,1801.1,1801.0,2.57563]
[1743419736507,1.5039,1801.1,1801.0,2.57563]
[1743419736805,2.61442,1801.1,1801.0,2.57563]
[1743419737306,1.11051,1801.2,1801.1,1.11048]
[1743419737508,2.61434,1801.3,1801.2,1.11045]
[1743419737698,1.11045,1801.2,1801.1,2.57559]
[1743419737896,2.61435,1801.2,1801.1,2.57559]
[1743419738102,2.61435,1801.2,1801.1,1.4651]
[1743419738302,2.61435,1801.2,1800.9,0.0083257]
[1743419738303,1.11058,1801.0,1800.9,0.0083257]
[1743419738496,0.7181,1801.3,1800.9,7.3636757]
[1743419738698,1.1188657,1801.1,1801.0,1.371]
[1743419739306,0.0083257,1801.1,1801.0,2.48153]
[1743419740107,2.6211457,1801.1,1801.0,2.48153]
[1743419740603,1.5106257,1801.1,1801.0,2.48153]
[1743419740808,0.0083257,1801.1,1801.0,2.48153]
[1743419741807,1.1188457,1801.1,1801.0,2.48153]
[1743419742002,2.5663457,1801.1,1801.0,2.48153]
[1743419742406,2.5663457,1801.1,1801.0,1.371]
[1743419742815,2.5663457,1801.1,1801.0,2.48158]
[1743419743702,1.1188457,1801.1,1801.0,2.48158]
[1743419744205,0.0083257,1801.1,1801.0,2.48158]
[1743419744407,1.1188457,1801.1,1801.0,2.48158]
[1743419744812,1.1188457,1801.1,1801.0,1.371]
[1743419745110,1.8236457,1801.1,1801.0,1.371]
[1743419745311,1.8236457,1801.1,1800.9,1.1189157]
[1743419745312,1.11058,1801.0,1800.9,0.0083257]
[1743419745514,1.11089,1800.6,1800.5,1.11087]
[1743419745805,1.11089,1800.6,1800.5,3.31407]
[1743419746111,2.62101,1800.7,1800.6,1.11082]
[1743419746412,8.2025,1800.8,1800.7,1.11076]
[1743419746598,8.20255,1800.8,1800.7,1.11076]
[1743419746804,9.71275,1800.8,1800.7,1.11076]
[1743419747400,5.0028957,1801.1,1800.8,2.77663]
[1743419747608,7.2638957,1801.1,1801.0,1.11058]
[1743419748112,7.2638957,1801.1,1801.0,2.55908]
[1743419748305,5.0028957,1801.1,1801.0,2.55908]
[1743419748610,5.0028457,1801.1,1801.0,2.55908]
[1743419749510,1.11064,1801.0,1800.9,1.11061]
[1743419749709,1.11064,1801.0,1800.9,1.84251]
[1743419750114,5.0028957,1801.1,1801.0,1.11058]
[1743419750503,1.11058,1801.0,1800.9,1.84249]
[1743419750710,3.8923257,1801.1,1801.0,1.11058]
[1743419750711,5.0028957,1801.1,1801.0,1.11058]
[1743419750911,5.0028957,1801.1,1801.0,2.48268]
[1743419752217,5.0028957,1801.1,1801.0,1.3721]
[1743419752705,1.11064,1800.9,1800.8,1.79758]
[1743419752914,5.0028957,1801.1,1801.0,1.11058]
[1743419753304,5.0028457,1801.1,1801.0,1.11058]
[1743419754010,1.1188457,1801.1,1801.0,1.11058]
[1743419754205,0.0083257,1801.1,1801.0,1.11058]
[1743419754406,0.0083257,1801.1,1801.0,1.86688]
[1743419755309,0.0083257,1801.1,1801.0,3.34958]
[1743419755600,1.1188457,1801.1,1801.0,1.11058]
[1743419755805,1.11058,1801.0,1800.9,1.11061]
[1743419756107,2.49448,1801.0,1800.9,1.11061]
[1743419756311,5.2669,1801.0,1800.8,1.4827]
[1743419756607,5.2669,1801.0,1800.9,1.11064]
[1743419756806,6.37748,1801.0,1800.9,1.11064]
[1743419757512,4.6282257,1801.1,1801.0,1.11058]
[1743419757513,4.3266857,1801.1,1801.0,1.11058]
[1743419757708,3.8913257,1801.1,1801.0,1.11058]
[1743419758106,5.0018457,1801.1,1801.0,1.82128]
[1743419758311,3.8913257,1801.1,1801.0,1.82128]
[1743419758710,0.0083257,1801.1,1801.0,1.82128]
[1743419759015,3.2078,1801.6,1801.5,1.11027]
[1743419759207,4.99315,1801.7,1801.6,1.11021]
[1743419759816,1.11015,1801.7,1801.6,1.11021]
[1743419760008,6.46847,1801.9,1801.8,1.11008]
[1743419760207,9.2414,1801.9,1801.8,1.11008]
[1743419760518,10.35142,1801.9,1801.8,1.11008]
[1743419760709,9.2414,1801.9,1801.8,1.11008]
[1743419761205,10.35142,1801.9,1801.8,1.11008]
[1743419761901,7.14362,1801.9,1801.8,1.11008]
[1743419762507,6.0336,1801.9,1801.8,1.11008]
[1743419762808,0.7354257,1802.0,1801.9,1.11002]
[1743419762809,1.1182857,1802.0,1801.9,1.11002]
[1743419763008,2.4874857,1802.0,1801.9,1.11002]
[1743419763613,2.4874857,1802.0,1801.9,2.50302]
[1743419764314,2.4874857,1802.0,1801.9,1.393]
[1743419764507,2.4874857,1802.0,1801.8,1.81013]
[1743419764508,1.3775257,1802.0,1801.8,0.7001]
[1743419764714,1.1183157,1802.0,1801.9,1.11002]
[1743419764910,0.0083257,1802.0,1801.9,3.21522]
[1743419765904,0.7206,1802.4,1802.3,1.10978]
[1743419766108,5.70935,1802.7,1802.6,1.10959]
[1743419766407,7.15133,1802.7,1802.6,1.10959]
[1743419766915,6.0418,1802.7,1802.6,1.10959]
[1743419767117,1.8384357,1802.8,1802.7,1.10953]
[1743419767410,7.1614357,1802.8,1802.7,1.10953]
[1743419768015,2.1709257,1802.8,1802.7,1.10953]
[1743419768204,0.0083257,1802.8,1802.7,1.10953]
[1743419768814,0.0083257,1802.8,1802.7,2.49543]
[1743419773514,8.5908,1803.4,1803.3,1.10916]
[1743419773714,6.7917,1803.4,1803.3,1.10916]
[1743419773910,1.4087,1803.4,1803.3,1.10916]
[1743419774614,26.93966715,1803.5,1803.4,1.1091]
[1743419775317,1.4196257,1803.5,1803.4,1.1091]
[1743419775822,0.0083257,1803.5,1803.4,1.1091]
[1743419776022,0.0083257,1803.5,1803.4,2.6059]
[1743419778230,5.97947,1804.2,1803.4,2.6059]
[1743419778231,3.2078,1804.6,1803.4,17.7088]
[1743419778428,3.2078,1804.6,1804.4,1.10849]
[1743419778429,1.4556,1804.5,1804.4,1.10849]
[1743419778623,1.4556,1804.5,1804.1,7.45055]
[1743419778831,1.4556,1804.5,1804.4,1.10849]
[1743419780427,1.4556,1804.5,1804.4,2.57959]
[1743419781426,9.16476348,1805.2,1804.4,7.8471]
[1743419781427,1.10811,1805.1,1804.4,7.8471]
[1743419781725,3.2078,1805.9,1805.8,1.10763]
[1743419782228,3.2078,1805.9,1805.7,1.10764]
[1743419782426,1.4243,1805.8,1805.7,1.10764]
[1743419783027,1.4243,1805.8,1805.7,1.10769]
[1743419783223,1.4243,1805.8,1805.6,1.1160357]
[1743419783421,1.4243,1805.8,1805.6,0.0083257]
[1743419783632,1.4243,1805.8,1805.6,1.1160457]
[1743419784023,1.4243,1805.8,1805.6,1.1160157]
[1743419784535,1.4243,1805.8,1805.7,1.10769]
[1743419784722,4.6321,1805.8,1805.6,0.0083257]
[1743419784926,1.10769,1805.7,1805.6,0.0083257]
[1743419785120,2.48479,1805.7,1805.6,0.0083257]
[1743419785633,1.3771,1805.7,1805.6,1.1160757]
[1743419785825,0.6874,1805.9,1805.6,0.0083257]
[1743419786021,2.0645,1805.9,1805.8,1.10763]
[1743419786221,0.0083257,1806.0,1805.9,1.10756]
[1743419786627,1.3854257,1806.0,1805.9,1.10756]
[1743419787324,2.76819,1806.4,1805.9,1.10756]
[1743419787325,5.97518,1807.0,1805.9,5.7078]
[1743419787530,2.6206,1806.5,1806.1,3.2078]
[1743419787729,1.5134,1806.5,1806.2,1.3754]
[1743419788130,4.31509,1806.4,1806.1,3.2078]
[1743419788332,1.10744,1806.2,1806.0,1.3754]
[1743419788526,7.08627291,1806.4,1806.0,2.48284]
[1743419788721,1.5134,1806.2,1806.0,2.48284]
[1743419789034,2.6208,1806.2,1806.0,2.48284]
[1743419789333,2.6208,1806.2,1806.0,2.48286]
[1743419789533,2.6208,1806.2,1806.1,1.10744]
[1743419789830,1.5134,1806.2,1806.0,2.48287]
[1743419790031,3.2078,1806.1,1805.9,1.10755]
[1743419790227,1.386,1806.0,1805.9,1.10755]
[1743419792337,3.9247,1806.3,1805.8,2.769]
[1743419792338,3.2078,1806.3,1805.8,2.769]
[1743419792636,3.871,1806.2,1806.1,1.10744]
[1743419792834,1.386,1806.2,1806.1,4.31524]
[1743419793031,1.10732,1806.3,1806.2,1.10733]
[1743419793331,1.3754,1806.3,1806.2,1.10733]
[1743419793533,2.48278,1806.3,1806.1,3.2078]
[1743419793728,1.3754,1806.3,1806.2,1.10738]
[1743419794157,2.48272,1806.3,1806.2,1.10738]
[1743419795657,1.3754,1806.3,1806.1,1.10739]
[1743419795851,2.48277,1806.3,1806.2,1.10738]
[1743419796161,1.3754,1806.3,1806.2,1.10738]
[1743419796870,1.3754,1806.3,1806.2,4.31518]
[1743419802034,0.00547291,1806.4,1806.3,1.10732]
[1743419802243,0.00547291,1806.4,1806.3,2.49122]
[1743419802534,1.39357291,1806.4,1806.3,2.49122]
[1743419810845,0.00547291,1806.4,1806.3,2.49122]
[1743419812838,0.00547291,1806.4,1806.3,3.19062]
[1743419815438,0.00547291,1806.4,1806.3,3.90452]
[1743419817950,2.91e-06,1806.4,1806.3,3.90452]
[1743419818241,1.54198557,1807.1,1807.0,1.10689]
[1743419818442,3.26423,1807.1,1807.0,1.10689]
[1743419818844,2.1574,1807.1,1807.0,1.10689]
[1743419820045,3.26423,1807.1,1807.0,1.10689]
[1743419820352,2.1574,1807.1,1807.0,1.10689]
[1743419821746,3.26423,1807.1,1807.0,1.10689]
[1743419823249,2.1574,1807.1,1807.0,1.10689]
[1743419824849,0.7314,1807.3,1807.2,1.10677]
[1743419825363,1.83811,1807.3,1807.2,1.10677]
[1743419826246,3.31571,1807.3,1807.2,1.10677]
[1743419826439,2.209,1807.3,1807.2,1.10677]
[1743419826641,3.31571,1807.3,1807.2,1.10677]
[1743419828045,2.209,1807.3,1807.2,1.10677]
[1743419828245,3.31571,1807.3,1807.2,1.10677]
[1743419828556,3.31571,1807.3,1807.1,1.5152]
[1743419828557,3.2078,1807.4,1807.3,1.10671]
[1743419829048,4.31445,1807.4,1807.3,1.10671]
[1743419829243,3.2078,1807.4,1807.3,1.10671]
[1743419829444,3.2078,1807.4,1807.3,2.61091]
[1743419829741,5.82505,1807.4,1807.3,2.61091]
[1743419829940,4.7184,1807.4,1807.3,2.61091]
[1743419830150,1.5106,1807.4,1807.3,2.61091]
[1743419830548,3.9399,1807.6,1807.3,1.5042]
[1743419830746,1.10658,1807.5,1807.4,2.61751]
[1743419830945,1.5106,1807.5,1807.4,2.61751]
[1743419833647,3.2078,1808.0,1807.4,16.61782]
[1743419833943,3.2078,1808.8,1808.4,2.76496]
[1743419834250,3.9404,1808.8,1808.7,1.10585]
[1743419834472,3.9404,1808.8,1808.5,2.76494]
[1743419834473,25.82230145,1808.9,1808.8,1.10579]
[1743419834771,25.82230145,1808.9,1808.8,4.31359]
[1743419835149,25.83484224,1808.9,1808.8,31.91359]
[1743419835353,25.83484224,1808.9,1808.8,33.34819]
[1743419836952,25.83484224,1808.9,1808.8,37.21219]
[1743419838261,25.83484224,1808.9,1808.8,9.61219]
[1743419838555,22.2395909,1808.9,1808.8,12.11219]
[1743419839152,0.01418913,1808.9,1808.8,12.11219]
[1743419839553,1.4237,1809.3,1809.2,1.07881008]
[1743419839749,3.2078,1809.5,1809.2,2.76382]
[1743419840056,1.4237,1809.7,1809.6,1.09275921]
[1743419840352,60.0,1810.0,1809.9,1.10512]
[1743419840757,60.01254079,1810.0,1809.9,1.10512]
[1743419841349,1.1052,1809.8,1809.5,0.73170242]
[1743419841551,1.1053,1809.6,1809.5,0.00830242]
[1743419841754,2.1052,1809.7,1809.6,1.09275921]
[1743419841952,2.1052,1809.7,1809.5,1.44110242]
[1743419842156,3.21045,1809.7,1809.6,1.1053]
[1743419842456,2.1052,1809.7,1809.6,1.1053]
[1743419842655,2.52504,1809.9,1809.5,4.20449242]
[1743419842852,1.10519,1809.8,1809.7,1.10523]
[1743419843054,2.52509,1809.8,1809.7,1.10523]
[1743419843455,1.4199,1809.8,1809.7,1.10523]
[1743419843661,2.52508,1809.8,1809.7,1.10524]
[1743419843857,1.4199,1809.8,1809.5,0.00830242]
[1743419844160,4.3131,1809.6,1809.5,0.00830242]
[1743419844559,5.733,1809.6,1809.5,0.00830242]
[1743419845255,8.233,1809.6,1809.5,0.00830242]
[1743419845460,1.10554,1809.2,1809.1,2.53839]
[1743419845758,1.10567,1809.0,1808.9,1.3963]
[1743419845958,1.10585,1808.7,1808.6,2.50218]
[1743419846153,3.2078,1808.8,1808.7,1.10585]
[1743419846354,4.31359,1808.8,1808.6,2.50217]
[1743419846550,1.11003426,1808.7,1808.6,1.11417242]
[1743419846952,2.21588426,1808.7,1808.6,1.11417242]
[1743419847150,2.21588426,1808.7,1808.6,0.00830242]
[1743419847355,3.57121,1808.7,1808.3,1.10606]
[1743419847560,1.10601,1808.5,1808.3,1.10609]
[1743419847758,1.10601,1808.5,1808.2,1.3963]
[1743419847953,3.9579,1808.6,1808.3,1.10605]
[1743419848258,5.06385,1808.6,1808.5,1.10597]
[1743419848456,4.01612765,1808.6,1808.5,1.10597]
[1743419848753,1.10597,1808.5,1808.4,0.00830242]
[1743419848958,1.18361852,1808.5,1808.4,0.00830242]
[1743419849659,1.18361852,1808.5,1808.4,1.11433242]
[1743419849860,1.48404852,1808.5,1808.4,1.11433242]
[1743419850056,1.50346939,1808.5,1808.4,1.11433242]
[1743419850965,1.50648395,1808.5,1808.4,1.11433242]
[1743419852168,2.61245395,1808.5,1808.4,0.00830242]
[1743419853064,1.50648395,1808.5,1808.4,1.11433242]
[1743419853259,2.61245395,1808.5,1808.4,1.11433242]
[1743419853766,2.61245395,1808.5,1808.4,0.00830242]
[1743419853968,2.61245395,1808.5,1808.4,1.11433242]
[1743419854164,2.61245395,1808.5,1808.4,0.00830242]
[1743419854973,1.10597,1808.5,1808.4,1.11433242]
[1743419855266,1.3737,1809.5,1809.4,1.10542]
[1743419855462,1.10542,1809.4,1809.3,1.10545]
[1743419855657,2.47912,1809.4,1809.3,1.4554]
[1743419855863,1.10548,1809.3,1809.2,1.10551]
[1743419856061,1.39307902,1809.3,1809.0,4.6632]
[1743419856265,1.10557,1809.2,1809.0,5.76882]
[1743419856570,1.3737,1809.1,1809.0,4.32172242]
[1743419857174,0.01937902,1809.1,1809.0,4.32172242]
[1743419857469,3.935,1809.3,1809.2,1.06676437]
[1743419857470,5.4281,1809.3,1809.2,1.06676437]
[1743419857666,5.4281,1809.3,1809.2,4.27456437]
[1743419857873,2.59858,1809.3,1809.2,4.27456437]
[1743419858260,1.51247902,1809.3,1809.0,3.21610242]
[1743419858466,1.10561,1809.1,1809.0,0.00830242]
[1743419858872,1.14264953,1809.1,1809.0,0.00830242]
[1743419859079,2.63574953,1809.1,1809.0,0.00830242]
[1743419859765,5.13574953,1809.1,1809.0,0.00830242]